[Event "CZE-tht Extraliga 2018-19"]
[Site "Czech Republic"]
[Date "2019.01.13"]
[Round "6"]
[White "Bures, Jaroslav"]
[Black "Wiewiora, Eneasz"]
[Result "1/2-1/2"]
[ECO "C63"]
[WhiteElo "2388"]
[BlackElo "2354"]
[Annotator "NA"]
[PlyCount "41"]
[EventDate "2018.11.03"]
[EventType "team-tourn"]
[EventCountry "CZE"]
[SourceTitle "playchess.com"]
[Source "ChessBase"]
[SourceQuality "1"]
[WhiteTeam "Poruba"]
[BlackTeam "Cesky Tesin"]
[TimeControl "40/5400+30:1800+30"]

1. e4 {[%emt 0:00:00]} e5 {[%emt 0:00:00]} 2. Nf3 {[%emt 0:00:00]} Nc6 {[%emt 0:00:00]} 3. Bb5 {[%emt 0:00:00]} f5 {[%emt 0:00:00]} 4. d3 {[%emt 0:01:18]} fxe4 {[%emt 0:01:59]} 5. dxe4 {[%emt 0:00:04]} Nf6 {[%emt 0:00:01]} 6. Qd3 {[%emt 0:02:10]} Bc5 {[%emt 0:07:51]} 7. Nc3 {[%emt 0:01:02]} d6 {[%emt 0:04:15]} 8. Nd5 {[%emt 0:08:33]} O-O {[%emt 0:27:01]} 9. Bg5 {[%emt 0:01:00]} Nb4 {[%emt 0:17:51]} 10. Nxf6+ {[%emt 0:33:25]} Qxf6 {[%emt 0:02:19]} 11. Qc4+ {[%emt 0:00:01]} Qf7 {[%emt 0:04:23]} 12. Be3 {[%emt 0:08:36]} Be6 {[%emt 0:04:26]} 13. Qe2 {[%emt 0:03:05]} Bxe3 {[%emt 0:00:08]} 14. fxe3 {[%emt 0:00:02]} h6 {[%emt 0:04:18]} 15. O-O {[%emt 0:03:37]} Qe7 {[%emt 0:03:17]} 16. a3 {[%emt 0:04:13]} Nc6 {[%emt 0:00:11]} 17. Rf2 {[%emt 0:00:15]} Rf6 {[%emt 0:02:18]} 18. Raf1 {[%emt 0:01:10]} a6 {[%emt 0:14:32]} 19. Bc4 {[%emt 0:01:57]} Bxc4 {[%emt 0:00:18]} 20. Qxc4+ {[%emt 0:00:07]} Qf7 {[%emt 0:00:09]} 21. Qxf7+ {[%emt 0:07:02]} 1/2-1/2

[Event "CZE-tht Extraliga 2018-19"]
[Site "Czech Republic"]
[Date "2019.01.13"]
[Round "6"]
[White "Jasny, Stanislav"]
[Black "Talla, Vladimir"]
[Result "1/2-1/2"]
[ECO "D20"]
[WhiteElo "2371"]
[BlackElo "2399"]
[Annotator "NA"]
[PlyCount "61"]
[EventDate "2018.11.03"]
[EventType "team-tourn"]
[EventCountry "CZE"]
[SourceTitle "playchess.com"]
[Source "ChessBase"]
[SourceQuality "1"]
[WhiteTeam "Beskydska"]
[BlackTeam "Ostrava"]
[TimeControl "40/5400+30:1800+30"]

1. d4 {[%emt 0:00:00]} d5 {[%emt 0:00:00]} 2. c4 {[%emt 0:00:00]} dxc4 {[%emt 0:00:27]} 3. e4 {[%emt 0:00:38]} Nc6 {[%emt 0:10:19]} 4. Nf3 {[%emt 0:03:28]} Bg4 {[%emt 0:03:08]} 5. d5 {[%emt 0:00:29]} Ne5 {[%emt 0:06:55]} 6. Bf4 {[%emt 0:00:23]} Ng6 {[%emt 0:04:31]} 7. Be3 {[%emt 0:01:46]} e6 {[%emt 0:15:11]} 8. Qa4+ {[%emt 0:06:32]} Qd7 {[%emt 0:00:20]} 9. Qxd7+ {[%emt 0:00:18]} Kxd7 {[%emt 0:00:02]} 10. Ng5 {[%emt 0:03:42]} Ne5 {[%emt 0:10:17]} 11. f4 {[%emt 0:37:09]} h6 {[%emt 0:01:27]} 12. fxe5 {[%emt 0:00:42]} hxg5 {[%emt 0:00:08]} 13. Bxc4 {[%emt 0:00:19]} f6 {[%emt 0:29:16]} 14. Nc3 {[%emt 0:07:39]} exd5 {[%emt 0:01:21]} 15. exd5 {[%emt 0:08:41]} fxe5 {[%emt 0:00:06]} 16. O-O {[%emt 0:02:48]} Nf6 {[%emt 0:00:06]} 17. Rac1 {[%emt 0:07:08]} a6 {[%emt 0:01:17]} 18. Bxg5 {[%emt 0:02:17]} Bc5+ {[%emt 0:00:15]} 19. Kh1 {[%emt 0:00:29]} Raf8 {[%emt 0:00:20]} 20. Bxf6 {[%emt 0:05:10]} gxf6 {[%emt 0:00:28]} 21. Ne4 {[%emt 0:00:05]} Be7 {[%emt 0:00:09]} 22. d6 {[%emt 0:03:53]} cxd6 {[%emt 0:00:53]} 23. Bd5 {[%emt 0:00:06]} Rc8 {[%emt 0:04:20]} 24. Bxb7 {[%emt 0:00:38]} Rxc1 {[%emt 0:00:07]} 25. Rxc1 {[%emt 0:00:04]} Rb8 {[%emt 0:00:15]} 26. Bxa6 {[%emt 0:01:36]} f5 {[%emt 0:02:38]} 27. Nf2 {[%emt 0:00:48]} Rxb2 {[%emt 0:00:31]} 28. Nxg4 {[%emt 0:00:38]} fxg4 {[%emt 0:00:06]} 29. Bc8+ {[%emt 0:00:04]} Ke8 {[%emt 0:00:19]} 30. Bxg4 {[%emt 0:01:22]} Rxa2 {[%emt 0:00:11]} 31. Bf3 {[%emt 0:01:43]} 1/2-1/2

[Event "CZE-tht Extraliga 2018-19"]
[Site "Czech Republic"]
[Date "2019.01.13"]
[Round "6"]
[White "Studnicka, Tomas"]
[Black "Pokorny, Petr"]
[Result "1/2-1/2"]
[ECO "A06"]
[WhiteElo "2309"]
[BlackElo "2219"]
[Annotator "NA"]
[PlyCount "60"]
[EventDate "2018.11.03"]
[EventType "team-tourn"]
[EventCountry "CZE"]
[SourceTitle "playchess.com"]
[Source "ChessBase"]
[SourceQuality "1"]
[WhiteTeam "Turnov"]
[BlackTeam "Siesta B"]
[TimeControl "40/5400+30:1800+30"]

1. Nf3 {[%emt 0:00:00]} d5 {[%emt 0:00:00]} 2. d4 {[%emt 0:00:00]} c6 {[%emt 0:00:08]} 3. Bg5 {[%emt 0:06:05]} h6 {[%emt 0:03:18]} 4. Bh4 {[%emt 0:01:42]} Qb6 {[%emt 0:01:24]} 5. b3 {[%emt 0:03:17]} Bf5 {[%emt 0:01:43]} 6. e3 {[%emt 0:02:29]} Nd7 {[%emt 0:03:08]} 7. Bd3 {[%emt 0:01:22]} Bxd3 {[%emt 0:00:58]} 8. Qxd3 {[%emt 0:00:03]} e6 {[%emt 0:08:53]} 9. O-O {[%emt 0:00:28]} Be7 {[%emt 0:00:17]} 10. Bxe7 {[%emt 0:03:13]} Nxe7 {[%emt 0:00:17]} 11. Nbd2 {[%emt 0:00:30]} Nf6 {[%emt 0:05:44]} 12. c4 {[%emt 0:06:07]} O-O {[%emt 0:03:04]} 13. Rab1 {[%emt 0:02:57]} a5 {[%emt 0:07:49]} 14. Rfc1 {[%emt 0:04:42]} Qa6 {[%emt 0:02:11]} 15. Ne5 {[%emt 0:03:23]} Rac8 {[%emt 0:10:44]} 16. a3 {[%emt 0:06:00]} b6 {[%emt 0:04:25]} 17. b4 {[%emt 0:06:00]} Rfd8 {[%emt 0:06:49]} 18. cxd5 {[%emt 0:12:22]} Qxd3 {[%emt 0:00:14]} 19. Nxd3 {[%emt 0:00:02]} cxd5 {[%emt 0:09:57]} 20. bxa5 {[%emt 0:01:35]} bxa5 {[%emt 0:00:07]} 21. Kf1 {[%emt 0:01:34]} Rxc1+ {[%emt 0:03:53]} 22. Rxc1 {[%emt 0:01:53]} Rc8 {[%emt 0:00:04]} 23. Rc5 {[%emt 0:05:01]} Rxc5 {[%emt 0:05:21]} 24. Nxc5 {[%emt 0:02:00]} Nc6 25. Ndb3 {[%emt 0:01:35]} Ne8 {[%emt 0:01:59]} 26. Nb7 {[%emt 0:01:28]} Nc7 {[%emt 0:00:13]} 27. N3c5 {[%emt 0:06:17]} Kf8 {[%emt 0:03:58]} 28. Ke2 {[%emt 0:06:06]} Ke7 {[%emt 0:00:09]} 29. Kd3 {[%emt 0:00:43]} Nb5 {[%emt 0:00:22]} 30. a4 {[%emt 0:00:42]} Nd6 {[%emt 0:00:06]} 1/2-1/2

[Event "CZE-tht Extraliga 2018-19"]
[Site "Czech Republic"]
[Date "2019.01.13"]
[Round "6"]
[White "Rehorek, Martin"]
[Black "Cech, Pavel"]
[Result "1/2-1/2"]
[ECO "C02"]
[WhiteElo "2282"]
[BlackElo "2336"]
[Annotator "NA"]
[PlyCount "62"]
[EventDate "2018.11.03"]
[EventType "team-tourn"]
[EventCountry "CZE"]
[SourceTitle "playchess.com"]
[Source "ChessBase"]
[SourceQuality "1"]
[WhiteTeam "Siesta B"]
[BlackTeam "Turnov"]
[TimeControl "40/5400+30:1800+30"]

1. e4 {[%emt 0:00:00]} e6 {[%emt 0:00:56]} 2. d4 {[%emt 0:00:00]} d5 {[%emt 0:00:04]} 3. e5 {[%emt 0:00:00]} c5 {[%emt 0:00:10]} 4. c3 {[%emt 0:00:00]} Nc6 {[%emt 0:00:16]} 5. Nf3 {[%emt 0:00:00]} Bd7 {[%emt 0:00:39]} 6. Be2 {[%emt 0:02:11]} Nge7 {[%emt 0:02:24]} 7. h4 {[%emt 0:10:43]} cxd4 {[%emt 0:17:06]} 8. cxd4 {[%emt 0:00:49]} Qb6 {[%emt 0:00:14]} 9. Na3 {[%emt 0:13:02]} Nf5 {[%emt 0:07:40]} 10. Nc2 {[%emt 0:00:20]} h5 {[%emt 0:00:23]} 11. O-O {[%emt 0:03:16]} Be7 {[%emt 0:14:26]} 12. g3 {[%emt 0:06:45]} Rc8 {[%emt 0:02:38]} 13. Rb1 {[%emt 0:05:23]} Nb4 {[%emt 0:07:29]} 14. Nxb4 {[%emt 0:01:14]} Bxb4 {[%emt 0:02:59]} 15. b3 {[%emt 0:06:34]} Bb5 {[%emt 0:01:03]} 16. Bb2 {[%emt 0:03:20]} Qa6 {[%emt 0:07:16]} 17. Bxb5+ {[%emt 0:01:27]} Qxb5 {[%emt 0:01:35]} 18. a3 {[%emt 0:01:49]} Be7 {[%emt 0:02:23]} 19. a4 {[%emt 0:00:58]} Qb6 {[%emt 0:05:18]} 20. Qd3 {[%emt 0:01:18]} O-O {[%emt 0:03:44]} 21. Rfc1 {[%emt 0:00:34]} Rc6 {[%emt 0:01:25]} 22. Rc2 {[%emt 0:06:09]} Rfc8 {[%emt 0:03:09]} 23. Rbc1 {[%emt 0:00:26]} g6 {[%emt 0:01:06]} 24. Kg2 {[%emt 0:01:09]} Kg7 {[%emt 0:00:22]} 25. Kf1 {[%emt 0:03:28]} Qb4 {[%emt 0:03:06]} 26. Kg2 {[%emt 0:02:42]} Bd8 {[%emt 0:02:26]} 27. Rxc6 {[%emt 0:09:07]} Rxc6 {[%emt 0:03:24]} 28. Rxc6 {[%emt 0:01:31]} bxc6 {[%emt 0:00:03]} 29. Qc3 {[%emt 0:00:34]} Be7 {[%emt 0:01:52]} 30. Qxb4 {[%emt 0:01:26]} Bxb4 {[%emt 0:00:05]} 31. Kf1 {[%emt 0:00:07]} c5 {[%emt 0:04:43]} 1/2-1/2

[Event "CZE-tht Extraliga 2018-19"]
[Site "Czech Republic"]
[Date "2019.01.13"]
[Round "6"]
[White "Smid, Miroslav"]
[Black "Vymazal, Bronislav"]
[Result "1-0"]
[ECO "A15"]
[WhiteElo "2261"]
[BlackElo "2358"]
[Annotator "NA"]
[PlyCount "61"]
[EventDate "2018.11.03"]
[EventType "team-tourn"]
[EventCountry "CZE"]
[SourceTitle "playchess.com"]
[Source "ChessBase"]
[SourceQuality "1"]
[WhiteTeam "Siesta"]
[BlackTeam "Brno"]
[TimeControl "40/5400+30:1800+30"]

1. c4 {[%emt 0:00:17]} Nf6 {[%emt 0:00:21]} 2. g3 {[%emt 0:00:27]} e5 {[%emt 0:00:16]} 3. Bg2 {[%emt 0:00:20]} c6 {[%emt 0:00:06]} 4. d4 {[%emt 0:00:40]} e4 {[%emt 0:04:56]} 5. Nc3 {[%emt 0:04:38]} d5 {[%emt 0:03:12]} 6. cxd5 {[%emt 0:05:58]} cxd5 {[%emt 0:00:07]} 7. f3 {[%emt 0:00:33]} Bb4 {[%emt 0:07:37]} 8. Bg5 {[%emt 0:09:12]} Bf5 {[%emt 0:21:20]} 9. Qb3 {[%emt 0:11:44]} Nc6 {[%emt 0:03:26]} 10. e3 {[%emt 0:00:35]} O-O {[%emt 0:10:09]} 11. Nge2 {[%emt 0:03:41]} exf3 {[%emt 0:26:35]} 12. Bxf3 {[%emt 0:00:37]} Bd3 {[%emt 0:00:48]} 13. O-O {[%emt 0:05:12]} Bc4 {[%emt 0:00:10]} 14. Qc2 {[%emt 0:13:06]} Be7 {[%emt 0:01:19]} 15. b3 {[%emt 0:02:38]} Bxe2 {[%emt 0:08:12]} 16. Qxe2 {[%emt 0:08:31]} Ne4 {[%emt 0:00:51]} 17. Bxe4 {[%emt 0:00:32]} dxe4 {[%emt 0:02:57]} 18. Bxe7 {[%emt 0:00:41]} Qxe7 {[%emt 0:00:06]} 19. Qg4 {[%emt 0:01:16]} Rae8 {[%emt 0:02:46]} 20. Rf4 {[%emt 0:04:41]} g6 {[%emt 0:02:40]} 21. Nd5 {[%emt 0:00:55]} Qd8 {[%emt 0:01:09]} 22. Nf6+ {[%emt 0:01:53]} Kh8 {[%emt 0:00:05]} 23. Qh4 {[%emt 0:03:19]} h5 {[%emt 0:00:04]} 24. Qg5 {[%emt 0:00:39]} Kg7 {[%emt 0:00:24]} 25. Nxh5+ {[%emt 0:00:12]} Kh7 {[%emt 0:00:22]} 26. Nf6+ {[%emt 0:00:12]} Kg7 {[%emt 0:00:04]} 27. Nxe8+ {[%emt 0:01:13]} Rxe8 {[%emt 0:00:11]} 28. Qc5 {[%emt 0:04:13]} Qd7 {[%emt 0:00:37]} 29. Raf1 {[%emt 0:00:27]} Re7 {[%emt 0:00:13]} 30. Qg5 {[%emt 0:01:00]} Nb4 {[%emt 0:02:15]} 31. Qf6+ {[%emt 0:00:46]} 1-0

[Event "CZE-tht Extraliga 2018-19"]
[Site "Czech Republic"]
[Date "2019.01.13"]
[Round "6"]
[White "Bartos, Jan"]
[Black "Sodoma, Jan"]
[Result "1/2-1/2"]
[ECO "E12"]
[WhiteElo "2178"]
[BlackElo "2324"]
[Annotator "NA"]
[PlyCount "48"]
[EventDate "2018.11.03"]
[EventType "team-tourn"]
[EventCountry "CZE"]
[SourceTitle "playchess.com"]
[Source "ChessBase"]
[SourceQuality "1"]
[WhiteTeam "Siesta B"]
[BlackTeam "Turnov"]
[TimeControl "40/5400+30:1800+30"]

1. Nf3 {[%emt 0:00:00]} Nf6 {[%emt 0:00:34]} 2. d4 {[%emt 0:03:34]} e6 {[%emt 0:00:16]} 3. c4 {[%emt 0:00:06]} b6 {[%emt 0:00:05]} 4. a3 {[%emt 0:00:03]} Bb7 {[%emt 0:07:04]} 5. Nc3 {[%emt 0:00:09]} d5 {[%emt 0:00:12]} 6. cxd5 {[%emt 0:00:11]} Nxd5 {[%emt 0:00:07]} 7. Nxd5 {[%emt 0:00:03]} Bxd5 {[%emt 0:01:59]} 8. Qc2 {[%emt 0:00:24]} Bb7 {[%emt 0:13:42]} 9. Bf4 {[%emt 0:04:14]} Bd6 {[%emt 0:00:27]} 10. Bxd6 {[%emt 0:00:36]} cxd6 {[%emt 0:00:50]} 11. e3 {[%emt 0:02:26]} O-O {[%emt 0:07:14]} 12. Be2 {[%emt 0:04:05]} Nd7 {[%emt 0:03:13]} 13. O-O {[%emt 0:00:23]} Nf6 {[%emt 0:03:30]} 14. Rfc1 {[%emt 0:05:33]} Qd7 {[%emt 0:00:25]} 15. Qc7 {[%emt 0:00:57]} Rfc8 {[%emt 0:00:15]} 16. Qxd7 {[%emt 0:00:18]} Nxd7 {[%emt 0:00:04]} 17. Nd2 {[%emt 0:00:32]} Kf8 {[%emt 0:03:51]} 18. Bf3 {[%emt 0:02:22]} Bxf3 {[%emt 0:00:09]} 19. Nxf3 {[%emt 0:00:04]} Ke7 {[%emt 0:00:12]} 20. Kf1 {[%emt 0:00:17]} Nf6 {[%emt 0:00:17]} 21. Ke2 {[%emt 0:02:09]} Ne4 {[%emt 0:00:24]} 22. Nd2 {[%emt 0:00:25]} Nxd2 {[%emt 0:00:09]} 23. Kxd2 {[%emt 0:00:06]} Kd7 {[%emt 0:00:08]} 24. Rxc8 {[%emt 0:00:52]} Rxc8 {[%emt 0:00:09]} 1/2-1/2

[Event "CZE-tht Extraliga 2018-19"]
[Site "Czech Republic"]
[Date "2019.01.13"]
[Round "6"]
[White "Krajina, Ales"]
[Black "Rabatin, Jakub"]
[Result "0-1"]
[ECO "A00"]
[WhiteElo "2121"]
[BlackElo "2319"]
[Annotator "NA"]
[PlyCount "72"]
[EventDate "2018.11.03"]
[EventType "team-tourn"]
[EventCountry "CZE"]
[SourceTitle "playchess.com"]
[Source "ChessBase"]
[SourceQuality "1"]
[WhiteTeam "Ostrava"]
[BlackTeam "Beskydska"]
[TimeControl "40/5400+30:1800+30"]

1. h4 {[%emt 0:00:00]} c5 {[%emt 0:00:00]} 2. h5 {[%emt 0:00:00]} h6 {[%emt 0:04:20]} 3. c3 {[%emt 0:01:34]} Nf6 {[%emt 0:13:31]} 4. d4 {[%emt 0:01:17]} cxd4 {[%emt 0:04:44]} 5. cxd4 {[%emt 0:00:30]} d5 {[%emt 0:00:11]} 6. Nf3 {[%emt 0:00:22]} Nc6 {[%emt 0:01:20]} 7. Nc3 {[%emt 0:00:46]} Bf5 {[%emt 0:09:04]} 8. Bf4 {[%emt 0:03:13]} a6 {[%emt 0:00:52]} 9. Rc1 {[%emt 0:02:50]} e6 {[%emt 0:04:01]} 10. a3 {[%emt 0:05:06]} Bd6 {[%emt 0:08:40]} 11. Ne5 {[%emt 0:17:53]} Bxe5 {[%emt 0:15:25]} 12. Bxe5 {[%emt 0:00:48]} Nxe5 {[%emt 0:00:14]} 13. dxe5 {[%emt 0:00:03]} Nd7 {[%emt 0:01:42]} 14. Qd4 {[%emt 0:01:43]} Qc7 {[%emt 0:01:28]} 15. f4 {[%emt 0:01:50]} O-O {[%emt 0:03:28]} 16. e3 {[%emt 0:00:40]} Rac8 {[%emt 0:07:47]} 17. Be2 {[%emt 0:00:35]} Nc5 {[%emt 0:01:36]} 18. Qb4 {[%emt 0:19:45]} b5 {[%emt 0:03:46]} 19. Kf2 {[%emt 0:09:53]} Rfd8 {[%emt 0:03:07]} 20. g4 Bxg4 {[%emt 0:02:40]} 21. Qd4 {[%emt 0:16:06]} Bxe2 {[%emt 0:06:15]} 22. Nxe2 {[%emt 0:00:55]} Qe7 {[%emt 0:01:42]} 23. Qd1 {[%emt 0:05:08]} Ne4+ {[%emt 0:00:36]} 24. Kf3 {[%emt 0:00:25]} f6 {[%emt 0:01:27]} 25. exf6 {[%emt 0:01:00]} Qxf6 {[%emt 0:00:04]} 26. Qd4 {[%emt 0:00:32]} Qf7 {[%emt 0:02:55]} 27. Qe5 {[%emt 0:01:18]} Nd2+ {[%emt 0:00:18]} 28. Kf2 {[%emt 0:00:11]} Nc4 {[%emt 0:00:05]} 29. Qc3 {[%emt 0:00:53]} Nd6 {[%emt 0:00:21]} 30. Qe5 {[%emt 0:00:37]} Rxc1 {[%emt 0:00:14]} 31. Rxc1 {[%emt 0:02:10]} Nc4 {[%emt 0:00:08]} 32. Qc3 {[%emt 0:00:24]} Qxh5 {[%emt 0:00:12]} 33. b3 {[%emt 0:00:16]} Nd6 {[%emt 0:00:08]} 34. Ng3 {[%emt 0:01:14]} Ne4+ {[%emt 0:01:05]} 35. Nxe4 {[%emt 0:00:11]} dxe4 {[%emt 0:00:25]} 36. Rg1 {[%emt 0:00:18]} Qf3+ {[%emt 0:00:06]} 0-1

[Event "CZE-tht Extraliga 2018-19"]
[Site "Czech Republic"]
[Date "2019.02.09"]
[Round "7"]
[White "Markowski, Tomasz"]
[Black "Simacek, Pavel"]
[Result "1/2-1/2"]
[ECO "A46"]
[WhiteElo "2550"]
[BlackElo "2479"]
[Annotator "ChessBase"]
[PlyCount "128"]
[EventDate "2018.11.03"]
[EventType "team-tourn"]
[EventCountry "CZE"]
[SourceTitle "playchess.com"]
[Source "ChessBase"]
[SourceQuality "1"]
[WhiteTeam "Poruba"]
[BlackTeam "Turnov"]
[TimeControl "40/5400+30:1800+30"]

1. d4 {[%emt 0:00:00]} Nf6 {[%emt 0:00:01]} 2. Nf3 {[%emt 0:00:06]} e6 {[%emt 0:00:25]} 3. e3 {[%emt 0:00:04]} b6 {[%emt 0:01:42]} 4. Bd3 {[%emt 0:00:09]} Bb7 {[%emt 0:00:05]} 5. O-O {[%emt 0:00:04]} Be7 {[%emt 0:01:03]} 6. c4 {[%emt 0:00:10]} O-O {[%emt 0:00:16]} 7. Nc3 {[%emt 0:00:04]} d5 {[%emt 0:00:36]} 8. cxd5 {[%emt 0:00:12]} exd5 {[%emt 0:02:47]} 9. b3 {[%emt 0:01:38]} Nbd7 {[%emt 0:02:19]} 10. Bb2 {[%emt 0:00:13]} Ne4 {[%emt 0:08:34]} 11. Qc2 {[%emt 0:02:40]} Ndf6 {[%emt 0:01:34]} 12. Rac1 {[%emt 0:08:03]} Nxc3 {[%emt 0:00:59]} 13. Qxc3 {[%emt 0:00:09]} Bd6 {[%emt 0:00:32]} 14. b4 {[%emt 0:04:59]} Ne4 {[%emt 0:07:47]} 15. Qb3 {[%emt 0:01:40]} a5 {[%emt 0:06:32]} 16. a3 {[%emt 0:01:38]} Qe8 {[%emt 0:04:33]} 17. b5 {[%emt 0:02:48]} a4 {[%emt 0:02:14]} 18. Qc2 {[%emt 0:05:18]} Qe7 {[%emt 0:10:04]} 19. Ra1 {[%emt 0:05:40]} f6 {[%emt 0:02:30]} 20. Rfc1 {[%emt 0:03:03]} Rfc8 {[%emt 0:01:41]} 21. Nd2 {[%emt 0:15:06]} Nxd2 {[%emt 0:06:14]} 22. Qxd2 {[%emt 0:01:02]} c5 {[%emt 0:04:18]} 23. bxc6 {[%emt 0:03:55]} Bxc6 {[%emt 0:00:15]} 24. g3 {[%emt 0:06:25]} Bd7 {[%emt 0:01:56]} 25. Rcb1 {[%emt 0:01:56]} Rc7 {[%emt 0:09:13]} 26. Bc3 {[%emt 0:01:07]} Rac8 {[%emt 0:00:08]} 27. Bb4 {[%emt 0:00:13]} Bxb4 {[%emt 0:00:07]} 28. Rxb4 {[%emt 0:00:30]} Rc3 {[%emt 0:01:25]} 29. Ba6 {[%emt 0:06:34]} R8c7 {[%emt 0:06:33]} 30. Rxb6 {[%emt 0:02:41]} Bh3 {[%emt 0:01:19]} 31. Qd1 {[%emt 0:08:36]} g6 {[%emt 0:10:02]} 32. Bf1 {[%emt 0:00:14]} Bxf1 {[%emt 0:01:25]} 33. Qxf1 {[%emt 0:00:15]} Kg7 {[%emt 0:01:10]} 34. Rb4 {[%emt 0:01:23]} R7c4 {[%emt 0:04:08]} 35. Qb1 {[%emt 0:06:59]} Kh6 {[%emt 0:01:57]} 36. Rxc4 {[%emt 0:09:54]} dxc4 {[%emt 0:00:07]} 37. e4 {[%emt 0:01:11]} g5 {[%emt 0:00:32]} 38. Qb6 {[%emt 0:01:23]} Kg7 {[%emt 0:01:08]} 39. e5 {[%emt 0:00:33]} fxe5 {[%emt 0:00:24]} 40. Re1 {[%emt 0:00:40]} e4 {[%emt 0:00:38]} 41. d5 {[%emt 0:01:00]} Rd3 {[%emt 0:02:38]} 42. Qc6 {[%emt 0:05:15]} e3 {[%emt 0:04:44]} 43. Qxc4 {[%emt 0:01:42]} exf2+ {[%emt 0:00:25]} 44. Kxf2 {[%emt 0:00:03]} Rd2+ {[%emt 0:00:04]} 45. Re2 {[%emt 0:00:18]} Rxe2+ {[%emt 0:01:05]} 46. Qxe2 {[%emt 0:00:03]} Qc5+ {[%emt 0:02:15]} 47. Kf3 {[%emt 0:01:58]} Qxd5+ {[%emt 0:00:49]} 48. Kg4 {[%emt 0:00:44]} Qd4+ {[%emt 0:01:33]} 49. Kh5 {[%emt 0:01:47]} Qf6 {[%emt 0:03:17]} 50. Qe4 {[%emt 0:02:02]} Qh6+ {[%emt 0:03:24]} 51. Kg4 {[%emt 0:00:02]} Qxh2 {[%emt 0:00:05]} 52. Qe7+ {[%emt 0:00:43]} Kg6 {[%emt 0:00:04]} 53. Qxg5+ {[%emt 0:01:52]} Kf7 {[%emt 0:00:03]} 54. Qf4+ {[%emt 0:01:04]} Kg6 {[%emt 0:00:17]} 55. Qe4+ {[%emt 0:01:16]} Kf6 {[%emt 0:00:25]} 56. Qc6+ {[%emt 0:00:53]} Ke5 {[%emt 0:00:17]} 57. Qe8+ {[%emt 0:02:26]} Kf6 {[%emt 0:00:28]} 58. Qf8+ {[%emt 0:00:43]} Kg6 {[%emt 0:00:27]} 59. Qg8+ {[%emt 0:00:25]} Kf6 {[%emt 0:00:11]} 60. Qg5+ {[%emt 0:00:07]} Kf7 {[%emt 0:00:13]} 61. Qf5+ {[%emt 0:00:11]} Kg7 {[%emt 0:00:12]} 62. Qe5+ {[%emt 0:00:22]} Kg6 {[%emt 0:00:24]} 63. Qe8+ {[%emt 0:00:51]} Kf6 {[%emt 0:00:12]} 64. Qc6+ {[%emt 0:02:49]} Ke5 {[%emt 0:01:09]} 1/2-1/2

[Event "CZE-tht Extraliga 2018-19"]
[Site "Czech Republic"]
[Date "2019.02.09"]
[Round "7"]
[White "Ftacnik, Lubomir"]
[Black "Kempinski, Robert"]
[Result "1-0"]
[ECO "A47"]
[WhiteElo "2500"]
[BlackElo "2578"]
[Annotator "ChessBase"]
[PlyCount "97"]
[EventDate "2018.11.03"]
[EventType "team-tourn"]
[EventCountry "CZE"]
[SourceTitle "playchess.com"]
[Source "ChessBase"]
[SourceQuality "1"]
[WhiteTeam "Turnov"]
[BlackTeam "Poruba"]
[TimeControl "40/5400+30:1800+30"]

1. d4 {[%emt 0:00:00]} Nf6 {[%emt 0:00:03]} 2. Nf3 {[%emt 0:00:00]} b6 {[%emt 0:00:45]} 3. c4 {[%emt 0:00:16]} Bb7 {[%emt 0:00:09]} 4. Nc3 {[%emt 0:00:25]} e6 {[%emt 0:00:25]} 5. a3 {[%emt 0:00:53]} d5 {[%emt 0:00:44]} 6. cxd5 {[%emt 0:00:57]} Nxd5 {[%emt 0:00:30]} 7. Qc2 {[%emt 0:01:44]} Be7 {[%emt 0:02:00]} 8. e4 {[%emt 0:00:16]} Nxc3 {[%emt 0:00:25]} 9. bxc3 {[%emt 0:00:04]} O-O {[%emt 0:01:02]} 10. Bd3 {[%emt 0:00:20]} c5 {[%emt 0:02:29]} 11. O-O {[%emt 0:00:19]} Qc7 {[%emt 0:00:29]} 12. Qe2 {[%emt 0:00:51]} Rd8 {[%emt 0:00:10]} 13. Bb2 {[%emt 0:04:11]} Nd7 {[%emt 0:10:09]} 14. Rad1 {[%emt 0:01:59]} Rac8 {[%emt 0:03:07]} 15. e5 {[%emt 0:14:28]} c4 {[%emt 0:15:15]} 16. Bb1 {[%emt 0:02:09]} b5 {[%emt 0:02:10]} 17. h4 {[%emt 0:04:39]} Nb6 {[%emt 0:05:15]} 18. Bc1 {[%emt 0:02:36]} Nd5 {[%emt 0:06:07]} 19. Qc2 {[%emt 0:10:51]} g6 {[%emt 0:03:15]} 20. Bg5 {[%emt 0:05:45]} Bxg5 {[%emt 0:04:38]} 21. Nxg5 {[%emt 0:00:34]} Qe7 {[%emt 0:03:08]} 22. Qc1 {[%emt 0:11:17]} h6 {[%emt 0:05:42]} 23. Ne4 {[%emt 0:11:55]} Qxh4 {[%emt 0:03:31]} 24. g3 {[%emt 0:00:54]} Qh3 {[%emt 0:05:26]} 25. f3 {[%emt 0:01:26]} Ne7 {[%emt 0:04:24]} 26. Nf6+ {[%emt 0:02:33]} Kg7 {[%emt 0:02:39]} 27. Rd2 {[%emt 0:00:45]} Ng8 {[%emt 0:04:27]} 28. Qe1 {[%emt 0:01:39]} Nxf6 {[%emt 0:06:55]} 29. exf6+ {[%emt 0:00:15]} Kxf6 {[%emt 0:00:07]} 30. Rh2 {[%emt 0:00:07]} Qxh2+ {[%emt 0:00:06]} 31. Kxh2 {[%emt 0:00:03]} Bd5 {[%emt 0:00:09]} 32. Be4 {[%emt 0:05:47]} h5 {[%emt 0:00:31]} 33. Qe3 {[%emt 0:01:02]} a6 {[%emt 0:00:30]} 34. Qf4+ {[%emt 0:01:59]} Kg7 {[%emt 0:00:38]} 35. Kg2 {[%emt 0:00:56]} Rd7 {[%emt 0:00:36]} 36. g4 {[%emt 0:01:47]} Rh8 {[%emt 0:00:45]} 37. g5 {[%emt 0:01:27]} Rc8 {[%emt 0:00:42]} 38. Re1 {[%emt 0:02:17]} Kg8 {[%emt 0:00:14]} 39. Kg3 {[%emt 0:01:02]} Rc6 {[%emt 0:00:37]} 40. Qb8+ {[%emt 0:04:06]} Kg7 {[%emt 0:00:07]} 41. Bxd5 {[%emt 0:31:28]} Rxd5 {[%emt 0:30:07]} 42. Re5 {[%emt 0:00:21]} Rcd6 {[%emt 0:01:21]} 43. f4 {[%emt 0:03:35]} a5 {[%emt 0:00:18]} 44. a4 {[%emt 0:00:00]} bxa4 {[%emt 0:00:00]} 45. Qc7 {[%emt 0:00:00]} a3 {[%emt 0:00:00]} 46. Qxc4 {[%emt 0:00:00]} Rxe5 {[%emt 0:00:00]} 47. fxe5 {[%emt 0:00:00]} Rb6 {[%emt 0:00:00]} 48. Qa4 {[%emt 0:00:00]} Rb1 {[%emt 0:00:00]} 49. Qxa3 {[%emt 0:00:00]} 1-0